[Event "*** Titled Tuesday Blitz"]
[Site "Chess.com"]
[Date "2020.05.26"]
[Round "2"]
[White "zajka-molotok"]
[Black "Funo09"]
[Result "1-0"]
[WhiteElo "2355"]
[BlackElo "2676"]
[TimeControl "180+1"]
[EndTime "10:18:38 PDT"]
[Termination "zajka-molotok won by checkmate"]

1. d4 {[%clk 0:03:00.9]} 1... Nf6 {[%clk 0:02:59.6]} 2. c4 {[%clk 0:03:00.3]}
2... Nc6 {[%clk 0:02:59.6]} 3. Nc3 {[%clk 0:02:58.6]} 3... e5 {[%clk 0:02:59.6]}
4. d5 {[%clk 0:02:57.4]} 4... Ne7 {[%clk 0:02:59.3]} 5. e4 {[%clk 0:02:53]} 5...
Ng6 {[%clk 0:02:58.3]} 6. Be3 {[%clk 0:02:47]} 6... Bb4 {[%clk 0:02:58.6]} 7.
Bd3 {[%clk 0:02:43.8]} 7... Bxc3+ {[%clk 0:02:57.8]} 8. bxc3 {[%clk 0:02:43.3]}
8... d6 {[%clk 0:02:58.7]} 9. h3 {[%clk 0:02:20.2]} 9... b6 {[%clk 0:02:52.5]}
10. Ne2 {[%clk 0:02:17.7]} 10... O-O {[%clk 0:02:52]} 11. O-O {[%clk 0:02:17.4]}
11... Nd7 {[%clk 0:02:48.5]} 12. a4 {[%clk 0:02:04.7]} 12... a5 {[%clk
0:02:45.6]} 13. Ng3 {[%clk 0:01:43]} 13... Nc5 {[%clk 0:02:42]} 14. Nf5 {[%clk
0:01:39.6]} 14... Ne7 {[%clk 0:02:35]} 15. Nxe7+ {[%clk 0:01:27]} 15... Qxe7
{[%clk 0:02:35.9]} 16. Qc2 {[%clk 0:01:20.6]} 16... Bd7 {[%clk 0:02:31.8]} 17.
Rfb1 {[%clk 0:01:04.4]} 17... Nxd3 {[%clk 0:02:19]} 18. Qxd3 {[%clk 0:01:03.7]}
18... f5 {[%clk 0:02:19.9]} 19. f3 {[%clk 0:00:43.5]} 19... f4 {[%clk 0:02:20]}
20. Bf2 {[%clk 0:00:40.9]} 20... g5 {[%clk 0:02:20.5]} 21. c5 {[%clk 0:00:37.1]}
21... bxc5 {[%clk 0:02:09.2]} 22. Rb7 {[%clk 0:00:35.3]} 22... Bc8 {[%clk
0:02:09.3]} 23. Rb2 {[%clk 0:00:30.8]} 23... Ba6 {[%clk 0:02:08.2]} 24. Qd2
{[%clk 0:00:29.3]} 24... Rfb8 {[%clk 0:02:05.4]} 25. Rab1 {[%clk 0:00:28.1]}
25... Qe8 {[%clk 0:02:02.4]} 26. Qc2 {[%clk 0:00:25]} 26... Kg7 {[%clk
0:01:57.6]} 27. Be1 {[%clk 0:00:21.3]} 27... h5 {[%clk 0:01:56.7]} 28. c4 {[%clk
0:00:20.5]} 28... Rb4 {[%clk 0:01:56.4]} 29. Bxb4 {[%clk 0:00:19.4]} 29... axb4
{[%clk 0:01:57.3]} 30. a5 {[%clk 0:00:18.9]} 30... Qg6 {[%clk 0:01:50]} 31. Kf2
{[%clk 0:00:17.8]} 31... g4 {[%clk 0:01:40.1]} 32. hxg4 {[%clk 0:00:17.6]} 32...
hxg4 {[%clk 0:01:41]} 33. Rh1 {[%clk 0:00:17.4]} 33... gxf3 {[%clk 0:01:22.5]}
34. gxf3 {[%clk 0:00:17.2]} 34... Qg3+ {[%clk 0:01:23]} 35. Kf1 {[%clk
0:00:12.3]} 35... Rg8 {[%clk 0:00:45.2]} 36. Rg1 {[%clk 0:00:11.8]} 36... Kf6
{[%clk 0:00:41.7]} 37. Rxg3 {[%clk 0:00:11.7]} 37... Rxg3 {[%clk 0:00:42.6]} 38.
Kf2 {[%clk 0:00:12]} 38... Rh3 {[%clk 0:00:41.1]} 39. Kg2 {[%clk 0:00:11.1]}
39... Rg3+ {[%clk 0:00:41.1]} 40. Kf2 {[%clk 0:00:11.6]} 40... Rh3 {[%clk
0:00:41.8]} 41. Qc1 {[%clk 0:00:11.6]} 41... Rh2+ {[%clk 0:00:40.5]} 42. Kg1
{[%clk 0:00:11.8]} 42... Rh3 {[%clk 0:00:40.9]} 43. Rf2 {[%clk 0:00:11]} 43...
Rg3+ {[%clk 0:00:38.5]} 44. Kf1 {[%clk 0:00:09.7]} 44... Rh3 {[%clk 0:00:38.9]}
45. Ke2 {[%clk 0:00:09.8]} 45... Rh8 {[%clk 0:00:36.7]} 46. Rg2 {[%clk
0:00:09.6]} 46... Kf7 {[%clk 0:00:35.5]} 47. Kd3 {[%clk 0:00:09.9]} 47... Rh3
{[%clk 0:00:34]} 48. Qg1 {[%clk 0:00:10.1]} 48... Rxf3+ {[%clk 0:00:34]} 49. Kd2
{[%clk 0:00:10.4]} 49... Rg3 {[%clk 0:00:33.2]} 50. Rxg3 {[%clk 0:00:10.5]}
50... fxg3 {[%clk 0:00:34.1]} 51. Qxg3 {[%clk 0:00:10.8]} 51... Bxc4 {[%clk
0:00:35]} 52. Qf3+ {[%clk 0:00:10.2]} 52... Ke7 {[%clk 0:00:35.4]} 53. Kc2
{[%clk 0:00:10]} 53... Bb5 {[%clk 0:00:33.8]} 54. Kb2 {[%clk 0:00:09.9]} 54...
c4 {[%clk 0:00:33.4]} 55. Qh5 {[%clk 0:00:08.2]} 55... Ba4 {[%clk 0:00:29.6]}
56. a6 {[%clk 0:00:07.7]} 56... c3+ {[%clk 0:00:29.2]} 57. Kc1 {[%clk
0:00:05.9]} 57... b3 {[%clk 0:00:29.4]} 58. Qg5+ {[%clk 0:00:05.9]} 58... Kd7
{[%clk 0:00:29.1]} 59. Qg7+ {[%clk 0:00:06]} 59... Kc8 {[%clk 0:00:28.9]} 60.
Qg8+ {[%clk 0:00:04.7]} 60... Kd7 {[%clk 0:00:29.2]} 61. a7 {[%clk 0:00:04.3]}
61... b2+ {[%clk 0:00:25.8]} 62. Kb1 {[%clk 0:00:04.5]} 62... Bb5 {[%clk
0:00:26.3]} 63. Qg7+ {[%clk 0:00:03.7]} 63... Kc8 {[%clk 0:00:25.9]} 64. a8=Q#
{[%clk 0:00:03.5]} 1-0

[Event "*** Titled Tuesday Blitz"]
[Site "Chess.com"]
[Date "2020.05.26"]
[Round "2"]
[White "Enriquack"]
[Black "Leonid_Starozhilov"]
[Result "1-0"]
[WhiteElo "2330"]
[BlackElo "2665"]
[TimeControl "180+1"]
[EndTime "10:18:39 PDT"]
[Termination "Enriquack won by checkmate"]

1. e4 {[%clk 0:03:00.9]} 1... g6 {[%clk 0:02:59.6]} 2. d4 {[%clk 0:03:00.4]}
2... Bg7 {[%clk 0:02:59.7]} 3. Nf3 {[%clk 0:03:01.1]} 3... d6 {[%clk 0:02:59.9]}
4. Bc4 {[%clk 0:03:01.2]} 4... Nf6 {[%clk 0:02:59.8]} 5. Qe2 {[%clk 0:02:58.7]}
5... Nc6 {[%clk 0:03:00.2]} 6. h3 {[%clk 0:02:40.1]} 6... e5 {[%clk 0:02:54.2]}
7. dxe5 {[%clk 0:02:36.5]} 7... Nxe5 {[%clk 0:02:54.1]} 8. Nxe5 {[%clk
0:02:36.6]} 8... dxe5 {[%clk 0:02:55]} 9. O-O {[%clk 0:02:37.2]} 9... O-O {[%clk
0:02:55.1]} 10. Rd1 {[%clk 0:02:34.9]} 10... Qe7 {[%clk 0:02:50.4]} 11. b3
{[%clk 0:02:35.2]} 11... Rd8 {[%clk 0:02:50.2]} 12. Ba3 {[%clk 0:02:31.6]} 12...
Rxd1+ {[%clk 0:02:47.1]} 13. Qxd1 {[%clk 0:02:31.8]} 13... Qd7 {[%clk
0:02:42.3]} 14. Qf3 {[%clk 0:02:01.1]} 14... b5 {[%clk 0:02:23.4]} 15. Bf1
{[%clk 0:01:45]} 15... Bb7 {[%clk 0:02:18.5]} 16. Nc3 {[%clk 0:01:40.8]} 16...
a6 {[%clk 0:02:14.6]} 17. Rd1 {[%clk 0:01:22.7]} 17... Qc6 {[%clk 0:02:13.3]}
18. Nd5 {[%clk 0:01:17.8]} 18... Nxd5 {[%clk 0:02:07.4]} 19. exd5 {[%clk
0:01:17.9]} 19... Qd7 {[%clk 0:01:41.2]} 20. c4 {[%clk 0:01:14.1]} 20... Rd8
{[%clk 0:01:36]} 21. Qe3 {[%clk 0:00:53.7]} 21... c6 {[%clk 0:01:13.6]} 22. d6
{[%clk 0:00:51]} 22... f5 {[%clk 0:01:04.5]} 23. Qa7 {[%clk 0:00:39.6]} 23...
Bc8 {[%clk 0:01:00]} 24. Qb6 {[%clk 0:00:35.2]} 24... e4 {[%clk 0:00:50]} 25.
Bc5 {[%clk 0:00:33.7]} 25... Bf6 {[%clk 0:00:37.2]} 26. a4 {[%clk 0:00:31.7]}
26... bxa4 {[%clk 0:00:32.3]} 27. bxa4 {[%clk 0:00:31.8]} 27... Qb7 {[%clk
0:00:29.7]} 28. Qxb7 {[%clk 0:00:25.8]} 28... Bxb7 {[%clk 0:00:30.6]} 29. Rb1
{[%clk 0:00:26]} 29... Rd7 {[%clk 0:00:26]} 30. Bb4 {[%clk 0:00:23.3]} 30... Bd4
{[%clk 0:00:20.9]} 31. c5 {[%clk 0:00:22.4]} 31... e3 {[%clk 0:00:20.5]} 32.
fxe3 {[%clk 0:00:21.8]} 32... Bxe3+ {[%clk 0:00:21.4]} 33. Kh1 {[%clk 0:00:22]}
33... f4 {[%clk 0:00:21.7]} 34. Bc4+ {[%clk 0:00:22.2]} 34... Kg7 {[%clk
0:00:21.7]} 35. Ba3 {[%clk 0:00:22.6]} 35... h5 {[%clk 0:00:14.6]} 36. Be6
{[%clk 0:00:22.7]} 36... Bc8 {[%clk 0:00:11.1]} 37. Bxd7 {[%clk 0:00:23]} 37...
Bxd7 {[%clk 0:00:09.1]} 38. Rb7 {[%clk 0:00:23.1]} 38... Kf6 {[%clk 0:00:09.5]}
39. Rxd7 {[%clk 0:00:23.4]} 39... g5 {[%clk 0:00:09.5]} 40. Ra7 {[%clk 0:00:21]}
40... Ke6 {[%clk 0:00:09.2]} 41. Rxa6 {[%clk 0:00:21.4]} 41... g4 {[%clk
0:00:08]} 42. hxg4 {[%clk 0:00:21.3]} 42... hxg4 {[%clk 0:00:08.1]} 43. Ra8
{[%clk 0:00:21.9]} 43... Kd7 {[%clk 0:00:07.6]} 44. Rg8 {[%clk 0:00:21.3]} 44...
g3 {[%clk 0:00:07.4]} 45. Rf8 {[%clk 0:00:21.2]} 45... Ke6 {[%clk 0:00:06.8]}
46. Bb4 {[%clk 0:00:20.5]} 46... Kd7 {[%clk 0:00:06.8]} 47. a5 {[%clk
0:00:20.7]} 47... f3 {[%clk 0:00:05.1]} 48. Rxf3 {[%clk 0:00:19.8]} 48... Bxc5
{[%clk 0:00:05.3]} 49. Bxc5 {[%clk 0:00:19.7]} 49... Ke6 {[%clk 0:00:05.3]} 50.
Rd3 {[%clk 0:00:19.2]} 50... Kd7 {[%clk 0:00:06.2]} 51. Kg1 {[%clk 0:00:19.8]}
51... Kc8 {[%clk 0:00:06.1]} 52. Kf1 {[%clk 0:00:20.3]} 52... Kb7 {[%clk
0:00:07]} 53. Ke2 {[%clk 0:00:21]} 53... Ka6 {[%clk 0:00:07.5]} 54. Kf3 {[%clk
0:00:21.7]} 54... Kb7 {[%clk 0:00:08.2]} 55. Kxg3 {[%clk 0:00:22.3]} 55... Ka6
{[%clk 0:00:09.1]} 56. Kf4 {[%clk 0:00:23]} 56... Kb7 {[%clk 0:00:10]} 57. g4
{[%clk 0:00:23.7]} 57... Ka6 {[%clk 0:00:10.9]} 58. g5 {[%clk 0:00:24.4]} 58...
Kb7 {[%clk 0:00:11.8]} 59. g6 {[%clk 0:00:25]} 59... Ka6 {[%clk 0:00:12.7]} 60.
g7 {[%clk 0:00:25.6]} 60... Kb7 {[%clk 0:00:13.6]} 61. g8=Q {[%clk 0:00:25.6]}
61... Ka6 {[%clk 0:00:14.5]} 62. Qa8+ {[%clk 0:00:25.7]} 62... Kb5 {[%clk
0:00:14.8]} 63. Bf2 {[%clk 0:00:19.2]} 63... c5 {[%clk 0:00:14.2]} 64. Qb7+
{[%clk 0:00:18.8]} 64... Ka4 {[%clk 0:00:13.9]} 65. Qc6+ {[%clk 0:00:18.2]}
65... Kb4 {[%clk 0:00:10.6]} 66. Qxc5+ {[%clk 0:00:18.1]} 66... Ka4 {[%clk
0:00:11.1]} 67. Ra3# {[%clk 0:00:18.1]} 1-0

[Event "*** Titled Tuesday Blitz"]
[Site "Chess.com"]
[Date "2020.05.26"]
[Round "2"]
[White "jonaszmb"]
[Black "IAgrest"]
[Result "1-0"]
[WhiteElo "2486"]
[BlackElo "2270"]
[TimeControl "180+1"]
[EndTime "10:18:40 PDT"]
[Termination "jonaszmb won by checkmate"]

1. d4 {[%clk 0:03:00.9]} 1... Nf6 {[%clk 0:02:59.2]} 2. c4 {[%clk 0:03:01.2]}
2... g6 {[%clk 0:02:59.2]} 3. Nf3 {[%clk 0:03:01.4]} 3... Bg7 {[%clk 0:02:59.2]}
4. g3 {[%clk 0:03:01.9]} 4... O-O {[%clk 0:02:59.2]} 5. Bg2 {[%clk 0:03:02.6]}
5... d6 {[%clk 0:02:59.8]} 6. O-O {[%clk 0:03:03]} 6... Nbd7 {[%clk 0:03:00.1]}
7. Qc2 {[%clk 0:03:02.2]} 7... a6 {[%clk 0:02:58.3]} 8. Rd1 {[%clk 0:03:01.6]}
8... Rb8 {[%clk 0:02:55.8]} 9. a4 {[%clk 0:02:42.9]} 9... Qe8 {[%clk 0:02:50]}
10. Nc3 {[%clk 0:02:39.9]} 10... e5 {[%clk 0:02:49.9]} 11. dxe5 {[%clk
0:02:26.3]} 11... dxe5 {[%clk 0:02:47]} 12. b3 {[%clk 0:02:16.8]} 12... Nc5
{[%clk 0:02:40]} 13. Ba3 {[%clk 0:02:14.1]} 13... Bf5 {[%clk 0:02:24.8]} 14. Qa2
{[%clk 0:01:54.2]} 14... Nfd7 {[%clk 0:02:14.2]} 15. Nd5 {[%clk 0:01:47.6]}
15... c6 {[%clk 0:02:04.9]} 16. Nb6 {[%clk 0:01:43]} 16... Nxb6 {[%clk
0:01:38.7]} 17. Bxc5 {[%clk 0:01:42.6]} 17... Nd7 {[%clk 0:01:37.3]} 18. Bxf8
{[%clk 0:01:42.4]} 18... Nxf8 {[%clk 0:01:37.2]} 19. e3 {[%clk 0:01:26.9]} 19...
Bg4 {[%clk 0:01:26.3]} 20. h3 {[%clk 0:01:19.5]} 20... Bxf3 {[%clk 0:01:24.3]}
21. Bxf3 {[%clk 0:01:20.4]} 21... e4 {[%clk 0:01:24.2]} 22. Bg2 {[%clk
0:01:17.5]} 22... Bxa1 {[%clk 0:01:22.2]} 23. Qxa1 {[%clk 0:01:18.4]} 23... Qe6
{[%clk 0:01:08.6]} 24. Qd4 {[%clk 0:01:15.9]} 24... Re8 {[%clk 0:01:07.6]} 25.
a5 {[%clk 0:01:15.2]} 25... h5 {[%clk 0:00:58.3]} 26. h4 {[%clk 0:01:14.3]}
26... Re7 {[%clk 0:00:54.5]} 27. Qd8 {[%clk 0:01:09.8]} 27... Re8 {[%clk
0:00:44.6]} 28. Qb6 {[%clk 0:01:07.3]} 28... Qg4 {[%clk 0:00:33.7]} 29. Rd4
{[%clk 0:01:04]} 29... Qe2 {[%clk 0:00:23.5]} 30. Bf1 {[%clk 0:00:54.5]} 30...
Qf3 {[%clk 0:00:18.2]} 31. Rd8 {[%clk 0:00:53.6]} 31... Rxd8 {[%clk 0:00:17.4]}
32. Qxd8 {[%clk 0:00:54.5]} 32... Kg7 {[%clk 0:00:13.9]} 33. Qd4+ {[%clk
0:00:53.8]} 33... Kg8 {[%clk 0:00:13.6]} 34. Bg2 {[%clk 0:00:54.3]} 34... Qe2
{[%clk 0:00:13.3]} 35. Bxe4 {[%clk 0:00:50.3]} 35... Qe1+ {[%clk 0:00:13.4]} 36.
Kg2 {[%clk 0:00:49.5]} 36... Qxa5 {[%clk 0:00:13.9]} 37. Qd6 {[%clk 0:00:41.4]}
37... Qc3 {[%clk 0:00:12.2]} 38. Qd3 {[%clk 0:00:36.4]} 38... Qb4 {[%clk
0:00:11.4]} 39. f3 {[%clk 0:00:33.5]} 39... Ne6 {[%clk 0:00:10.6]} 40. g4 {[%clk
0:00:30.5]} 40... hxg4 {[%clk 0:00:07]} 41. fxg4 {[%clk 0:00:31.4]} 41... Qa3
{[%clk 0:00:06.1]} 42. h5 {[%clk 0:00:26.1]} 42... Qb2+ {[%clk 0:00:05.8]} 43.
Kg3 {[%clk 0:00:26.3]} 43... Qe5+ {[%clk 0:00:05.9]} 44. Kg2 {[%clk 0:00:23.9]}
44... Nc5 {[%clk 0:00:04]} 45. Qd8+ {[%clk 0:00:22.9]} 45... Kg7 {[%clk
0:00:03.9]} 46. h6+ {[%clk 0:00:16.1]} 46... Kxh6 {[%clk 0:00:04]} 47. Qf8+
{[%clk 0:00:12.6]} 47... Kg5 {[%clk 0:00:04]} 48. Bf3 {[%clk 0:00:11.3]} 48...
Qxe3 {[%clk 0:00:03.4]} 49. Qxf7 {[%clk 0:00:11.4]} 49... Qd2+ {[%clk
0:00:02.9]} 50. Kh3 {[%clk 0:00:10.6]} 50... Qe3 {[%clk 0:00:02.6]} 51. Qf8
{[%clk 0:00:08.7]} 51... Nd3 {[%clk 0:00:02.4]} 52. Qd8+ {[%clk 0:00:08.2]}
52... Kh6 {[%clk 0:00:02.3]} 53. Qh8+ {[%clk 0:00:08.5]} 53... Kg5 {[%clk
0:00:02.5]} 54. Qh4+ {[%clk 0:00:08.7]} 54... Kf4 {[%clk 0:00:02.1]} 55. Qg3+
{[%clk 0:00:09.2]} 55... Kg5 {[%clk 0:00:02.1]} 56. Qh4+ {[%clk 0:00:09.6]}
56... Kf4 {[%clk 0:00:02.4]} 57. Qf6# {[%clk 0:00:09.3]} 1-0

[Event "*** Titled Tuesday Blitz"]
[Site "Chess.com"]
[Date "2020.05.26"]
[Round "2"]
[White "Jenia84"]
[Black "kleopl"]
[Result "1-0"]
[WhiteElo "2215"]
[BlackElo "2413"]
[TimeControl "180+1"]
[EndTime "10:18:40 PDT"]
[Termination "Jenia84 won by resignation"]

1. Nf3 {[%clk 0:03:00.9]} 1... f5 {[%clk 0:02:56.3]} 2. b4 {[%clk 0:02:59]} 2...
a5 {[%clk 0:02:52.1]} 3. bxa5 {[%clk 0:02:57]} 3... Rxa5 {[%clk 0:02:46.6]} 4.
Bb2 {[%clk 0:02:57.4]} 4... Nf6 {[%clk 0:02:45.6]} 5. e3 {[%clk 0:02:55.4]} 5...
d6 {[%clk 0:02:43.7]} 6. d4 {[%clk 0:02:54.3]} 6... g6 {[%clk 0:02:40.7]} 7. Bd3
{[%clk 0:02:54.7]} 7... Bg7 {[%clk 0:02:40.3]} 8. Nbd2 {[%clk 0:02:55.1]} 8...
O-O {[%clk 0:02:39.5]} 9. O-O {[%clk 0:02:55.6]} 9... b6 {[%clk 0:02:35.1]} 10.
Qe2 {[%clk 0:02:54.4]} 10... Ba6 {[%clk 0:02:30.7]} 11. Nb3 {[%clk 0:02:40]}
11... Bxd3 {[%clk 0:02:29.9]} 12. cxd3 {[%clk 0:02:38.7]} 12... Ra8 {[%clk
0:02:26.7]} 13. e4 {[%clk 0:02:28.8]} 13... Nh5 {[%clk 0:02:12.8]} 14. d5 {[%clk
0:02:08.8]} 14... Nf4 {[%clk 0:02:03.3]} 15. Qc2 {[%clk 0:02:03.7]} 15... Bxb2
{[%clk 0:02:02]} 16. Qxb2 {[%clk 0:02:03]} 16... Nxd3 {[%clk 0:01:58]} 17. Qd2
{[%clk 0:01:46.7]} 17... fxe4 {[%clk 0:01:56.6]} 18. Ng5 {[%clk 0:01:46.5]}
18... Nf4 {[%clk 0:00:34.1]} 19. g3 {[%clk 0:01:41.9]} 19... h6 {[%clk
0:00:28.5]} 20. Nxe4 {[%clk 0:01:37.6]} 20... Nh3+ {[%clk 0:00:26.6]} 21. Kg2
{[%clk 0:01:36.9]} 21... Ng5 {[%clk 0:00:20.8]} 22. Nxg5 {[%clk 0:01:36.1]}
22... hxg5 {[%clk 0:00:21.7]} 23. Qxg5 {[%clk 0:01:28.1]} 23... Kg7 {[%clk
0:00:21.5]} 24. Nd4 {[%clk 0:01:26.8]} 24... Rf6 {[%clk 0:00:17.5]} 25. Ne6+
{[%clk 0:01:21.8]} 25... Rxe6 {[%clk 0:00:17.6]} 26. dxe6 {[%clk 0:01:21.7]}
26... Ra5 {[%clk 0:00:18.2]} 27. Qg4 {[%clk 0:01:12.5]} 27... Nc6 {[%clk
0:00:16.3]} 28. Rfe1 {[%clk 0:01:01]} 28... Qa8 {[%clk 0:00:14.8]} 29. Qf3
{[%clk 0:00:49.6]} 29... Rf5 {[%clk 0:00:13.8]} 30. Qe4 {[%clk 0:00:49.3]} 30...
Re5 {[%clk 0:00:13.8]} 31. Qf3 {[%clk 0:00:44.6]} 31... Rf5 {[%clk 0:00:13.4]}
32. Qc3+ {[%clk 0:00:27]} 32... Rf6 {[%clk 0:00:13.3]} 33. Kg1 {[%clk
0:00:22.9]} 33... Ne5 {[%clk 0:00:13]} 34. Rxe5 {[%clk 0:00:22.4]} 34... dxe5
{[%clk 0:00:13.9]} 35. Qxe5 {[%clk 0:00:20.3]} 35... Qc6 {[%clk 0:00:13]} 36.
Re1 {[%clk 0:00:18.8]} 36... Qc2 {[%clk 0:00:11.1]} 37. Qe2 {[%clk 0:00:17.7]}
37... Qc6 {[%clk 0:00:09.8]} 38. h4 {[%clk 0:00:17.6]} 38... Rf5 {[%clk
0:00:09]} 39. a3 {[%clk 0:00:16.7]} 39... Qc5 {[%clk 0:00:09.1]} 40. Qe3 {[%clk
0:00:15.7]} 40... Qc6 {[%clk 0:00:07.6]} 41. Qd4+ {[%clk 0:00:15.2]} 41... Kh7
{[%clk 0:00:06.9]} 42. Qd7 {[%clk 0:00:14.4]} 42... Qc5 {[%clk 0:00:06.9]} 43.
Qd2 {[%clk 0:00:12.8]} 43... Rf6 {[%clk 0:00:07]} 44. Qe3 {[%clk 0:00:12.4]}
44... Qc6 {[%clk 0:00:06.6]} 45. Re2 {[%clk 0:00:11.6]} 45... Qd5 {[%clk
0:00:05]} 46. Qe4 {[%clk 0:00:11.2]} 46... Qd6 {[%clk 0:00:04.3]} 47. a4 {[%clk
0:00:10.4]} 47... Qa3 {[%clk 0:00:03]} 48. h5 {[%clk 0:00:10.1]} 48... Kg7
{[%clk 0:00:02.1]} 49. hxg6 {[%clk 0:00:10.1]} 49... Rxg6 {[%clk 0:00:03]} 50.
Qe5+ {[%clk 0:00:10]} 50... Rf6 {[%clk 0:00:03.2]} 51. Kg2 {[%clk 0:00:10.3]}
51... Qd6 {[%clk 0:00:02]} 52. Qg5+ {[%clk 0:00:10.5]} 52... Rg6 {[%clk
0:00:01.5]} 53. Qe3 {[%clk 0:00:09.9]} 53... Qc6+ {[%clk 0:00:01.6]} 54. Qe4
{[%clk 0:00:09.7]} 54... Qxa4 {[%clk 0:00:02.5]} 55. Qxa4 {[%clk 0:00:09.2]} 1-0

[Event "*** Titled Tuesday Blitz"]
[Site "Chess.com"]
[Date "2020.05.26"]
[Round "2"]
[White "Chessialist"]
[Black "sergiochess83"]
[Result "0-1"]
[WhiteElo "2543"]
[BlackElo "2849"]
[TimeControl "180+1"]
[EndTime "10:18:41 PDT"]
[Termination "sergiochess83 won by resignation"]

1. e4 {[%clk 0:03:00.9]} 1... c6 {[%clk 0:02:59.8]} 2. Nc3 {[%clk 0:02:59.8]}
2... d5 {[%clk 0:02:59.9]} 3. Nf3 {[%clk 0:03:00]} 3... Bg4 {[%clk 0:02:59.2]}
4. Be2 {[%clk 0:02:59.4]} 4... Nf6 {[%clk 0:02:46.6]} 5. d3 {[%clk 0:02:58.1]}
5... e6 {[%clk 0:02:40.2]} 6. h3 {[%clk 0:02:57]} 6... Bh5 {[%clk 0:02:37.6]} 7.
O-O {[%clk 0:02:56.9]} 7... Be7 {[%clk 0:02:35.9]} 8. Bf4 {[%clk 0:02:56.4]}
8... O-O {[%clk 0:02:35.1]} 9. Ne5 {[%clk 0:02:51.1]} 9... Bxe2 {[%clk
0:02:33.8]} 10. Qxe2 {[%clk 0:02:52]} 10... Nbd7 {[%clk 0:02:33]} 11. Nxd7
{[%clk 0:02:51.5]} 11... Qxd7 {[%clk 0:02:32.9]} 12. Qf3 {[%clk 0:02:19.5]}
12... Rfd8 {[%clk 0:02:26.2]} 13. Rad1 {[%clk 0:02:18.2]} 13... b5 {[%clk
0:02:11.1]} 14. Bg5 {[%clk 0:02:17.5]} 14... h6 {[%clk 0:02:09.6]} 15. Bh4
{[%clk 0:02:11.1]} 15... Nxe4 {[%clk 0:01:35]} 16. Bxe7 {[%clk 0:02:02]} 16...
Nxc3 {[%clk 0:01:34.9]} 17. Bxd8 {[%clk 0:02:01.9]} 17... Nxd1 {[%clk 0:01:35]}
18. Bf6 {[%clk 0:01:51.4]} 18... gxf6 {[%clk 0:01:32.6]} 19. Rxd1 {[%clk
0:01:47.8]} 19... f5 {[%clk 0:01:25.4]} 20. d4 {[%clk 0:01:44.2]} 20... Kh7
{[%clk 0:01:23.7]} 21. Qf4 {[%clk 0:01:42]} 21... Rg8 {[%clk 0:01:22.1]} 22. Rd3
{[%clk 0:01:42]} 22... a5 {[%clk 0:01:17.8]} 23. Rg3 {[%clk 0:01:37.2]} 23...
Rxg3 {[%clk 0:01:15.4]} 24. Qxg3 {[%clk 0:01:38.1]} 24... Qa7 {[%clk 0:01:11.6]}
25. Qe5 {[%clk 0:01:35.5]} 25... c5 {[%clk 0:01:11.1]} 26. c3 {[%clk 0:01:29.7]}
26... b4 {[%clk 0:01:02]} 27. Qf6 {[%clk 0:01:29.1]} 27... cxd4 {[%clk
0:00:41.8]} 28. cxd4 {[%clk 0:01:28.8]} 28... a4 {[%clk 0:00:42.3]} 29. h4
{[%clk 0:01:22.1]} 29... Qc7 {[%clk 0:00:39.2]} 30. h5 {[%clk 0:01:16.3]} 30...
b3 {[%clk 0:00:33.6]} 31. axb3 {[%clk 0:01:15.6]} 31... axb3 {[%clk 0:00:34.5]}
32. g3 {[%clk 0:01:15.4]} 32... Qc1+ {[%clk 0:00:28.9]} 33. Kg2 {[%clk
0:01:14.9]} 33... Kg8 {[%clk 0:00:29.8]} 34. Kf3 {[%clk 0:00:33.5]} 34... Qxb2
{[%clk 0:00:19.2]} 35. Qxh6 {[%clk 0:00:33.6]} 35... Qxd4 {[%clk 0:00:19.3]} 36.
Qg5+ {[%clk 0:00:33.1]} 36... Kh7 {[%clk 0:00:18]} 37. Kg2 {[%clk 0:00:27.5]}
37... b2 {[%clk 0:00:17.5]} 38. Qe7 {[%clk 0:00:27.7]} 38... b1=Q {[%clk
0:00:11.2]} 39. Qxf7+ {[%clk 0:00:27.7]} 39... Qg7 {[%clk 0:00:11.8]} 40. Qe8
{[%clk 0:00:21.6]} 40... Qe4+ {[%clk 0:00:11.8]} 41. Kh2 {[%clk 0:00:20.8]}
41... Qf3 {[%clk 0:00:11.1]} 42. Kg1 {[%clk 0:00:20.1]} 42... d4 {[%clk
0:00:09.2]} 43. h6 {[%clk 0:00:12.3]} 43... Kxh6 {[%clk 0:00:07.4]} 44. Qd8
{[%clk 0:00:13]} 44... Qd1+ {[%clk 0:00:04.7]} 45. Kg2 {[%clk 0:00:11.2]} 45...
Qdg4 {[%clk 0:00:05.3]} 46. Qd6 {[%clk 0:00:07.1]} 46... d3 {[%clk 0:00:05]} 47.
Qxe6+ {[%clk 0:00:07.4]} 47... Kh7 {[%clk 0:00:04.4]} 48. Qd6 {[%clk 0:00:06.5]}
48... Qe4+ {[%clk 0:00:04.1]} 49. Kg1 {[%clk 0:00:05.8]} 49... Qe1+ {[%clk
0:00:03.9]} 50. Kg2 {[%clk 0:00:05.8]} 50... d2 {[%clk 0:00:04.5]} 51. Qd3
{[%clk 0:00:01.3]} 51... Qe4+ {[%clk 0:00:04.4]} 52. Qxe4 {[%clk 0:00:01.4]}
52... fxe4 {[%clk 0:00:05.3]} 0-1